[Event "Early-Titled-Tuesday-Blitz-September-05-2023"]
[Site "Chess.com"]
[Date "2023.09.05"]
[Round "4"]
[White "Legendinunknown"]
[Black "Mesa_1"]
[Result "1-0"]
[WhiteElo "2834"]
[BlackElo "2573"]
[TimeControl "180+1"]
[EndTime "8:37:56 PDT"]
[Termination "Legendinunknown won on time"]

1. d4 {[%clk 0:03:00.9]} 1... Nf6 {[%clk 0:02:58]} 2. c4 {[%clk 0:03:01]} 2...
g6 {[%clk 0:02:58.7]} 3. Nc3 {[%clk 0:03:00.7]} 3... Bg7 {[%clk 0:02:59.5]} 4.
e4 {[%clk 0:03:00.9]} 4... d6 {[%clk 0:03:00.2]} 5. Nf3 {[%clk 0:03:00.8]} 5...
O-O {[%clk 0:03:00.9]} 6. Be2 {[%clk 0:03:01]} 6... Na6 {[%clk 0:03:01.6]} 7. h3
{[%clk 0:02:58]} 7... e5 {[%clk 0:02:59.7]} 8. Be3 {[%clk 0:02:57.2]} 8... exd4
{[%clk 0:02:56.2]} 9. Nxd4 {[%clk 0:02:57]} 9... Re8 {[%clk 0:02:55.5]} 10. Qc2
{[%clk 0:02:56.8]} 10... c6 {[%clk 0:02:49.4]} 11. O-O-O {[%clk 0:02:54.6]}
11... Qe7 {[%clk 0:02:41.6]} 12. f3 {[%clk 0:02:53.1]} 12... d5 {[%clk
0:02:33.5]} 13. cxd5 {[%clk 0:02:52]} 13... Nxd5 {[%clk 0:01:59.3]} 14. Bf2
{[%clk 0:02:21.9]} 14... Nab4 {[%clk 0:01:51.9]} 15. Qb3 {[%clk 0:02:11.1]}
15... Nf4 {[%clk 0:01:48.9]} 16. Bc4 {[%clk 0:02:07.9]} 16... a5 {[%clk
0:01:28.6]} 17. a4 {[%clk 0:01:46.8]} 17... Nxg2 {[%clk 0:01:16.9]} 18. h4
{[%clk 0:01:39.7]} 18... Nf4 {[%clk 0:01:01.5]} 19. Be3 {[%clk 0:01:26.8]} 19...
Ne6 {[%clk 0:00:57]} 20. Nf5 {[%clk 0:00:41.4]} 20... gxf5 {[%clk 0:00:49.7]}
21. exf5 {[%clk 0:00:42.3]} 21... Nc5 {[%clk 0:00:38.7]} 22. Bxc5 {[%clk
0:00:40.6]} 22... Qxc5 {[%clk 0:00:39.6]} 23. Bxf7+ {[%clk 0:00:40.6]} 23... Kf8
{[%clk 0:00:40.4]} 24. Bxe8 {[%clk 0:00:40.7]} 24... Qe3+ {[%clk 0:00:32.5]} 25.
Rd2 {[%clk 0:00:36.7]} 25... Qxe8 {[%clk 0:00:32]} 26. Re2 {[%clk 0:00:25.9]}
26... Qf7 {[%clk 0:00:30.7]} 27. Qxf7+ {[%clk 0:00:23.4]} 27... Kxf7 {[%clk
0:00:31.6]} 28. Ne4 {[%clk 0:00:22.5]} 28... Bh6+ {[%clk 0:00:29.9]} 29. Ng5+
{[%clk 0:00:17.8]} 29... Kf6 {[%clk 0:00:23.7]} 30. Re8 {[%clk 0:00:17.5]} 30...
b6 {[%clk 0:00:17.7]} 31. f4 {[%clk 0:00:17.6]} 31... Nd5 {[%clk 0:00:17.2]} 32.
Rhe1 {[%clk 0:00:14.4]} 32... Nc7 {[%clk 0:00:16]} 33. Rh8 {[%clk 0:00:14.2]}
33... Bxg5 {[%clk 0:00:14.5]} 34. fxg5+ {[%clk 0:00:15.1]} 34... Kxf5 {[%clk
0:00:15.2]} 35. Rxh7 {[%clk 0:00:15.1]} 35... Nd5 {[%clk 0:00:15.4]} 36. Re8
{[%clk 0:00:15.2]} 36... Bb7 {[%clk 0:00:15.1]} 37. Rxa8 {[%clk 0:00:15.1]}
37... Bxa8 {[%clk 0:00:16]} 38. Ra7 {[%clk 0:00:15.3]} 1-0

[Event "Early-Titled-Tuesday-Blitz-September-05-2023"]
[Site "Chess.com"]
[Date "2023.09.05"]
[Round "4"]
[White "BatboldNyamsuren0919"]
[Black "Vesper2018"]
[Result "1-0"]
[WhiteElo "2441"]
[BlackElo "2577"]
[TimeControl "180+1"]
[EndTime "8:37:56 PDT"]
[Termination "BatboldNyamsuren0919 won by resignation"]

1. Nf3 {[%clk 0:02:43.9]} 1... Nf6 {[%clk 0:02:59.3]} 2. d4 {[%clk 0:02:44.8]}
2... g6 {[%clk 0:03:00]} 3. g3 {[%clk 0:02:44.2]} 3... Bg7 {[%clk 0:03:00]} 4.
Bg2 {[%clk 0:02:45.1]} 4... O-O {[%clk 0:03:00.5]} 5. O-O {[%clk 0:02:45.8]}
5... d6 {[%clk 0:03:00.3]} 6. b3 {[%clk 0:02:45]} 6... Nc6 {[%clk 0:02:56.6]} 7.
Bb2 {[%clk 0:02:45.3]} 7... e5 {[%clk 0:02:54.1]} 8. dxe5 {[%clk 0:02:44.9]}
8... Ng4 {[%clk 0:02:54.4]} 9. c4 {[%clk 0:02:42.1]} 9... Ngxe5 {[%clk
0:02:53.9]} 10. Nxe5 {[%clk 0:02:41.4]} 10... Nxe5 {[%clk 0:02:51.5]} 11. Nc3
{[%clk 0:02:41.5]} 11... f5 {[%clk 0:02:44.6]} 12. Qc2 {[%clk 0:02:40.8]} 12...
f4 {[%clk 0:02:35.7]} 13. Rad1 {[%clk 0:02:31.1]} 13... f3 {[%clk 0:02:32.6]}
14. exf3 {[%clk 0:02:29.7]} 14... Nxf3+ {[%clk 0:02:32.8]} 15. Kh1 {[%clk
0:02:27]} 15... Bf5 {[%clk 0:02:17.3]} 16. Qc1 {[%clk 0:02:25.9]} 16... Ne5
{[%clk 0:02:12.3]} 17. Bxb7 {[%clk 0:02:24.3]} 17... Nd3 {[%clk 0:02:10.6]} 18.
Bd5+ {[%clk 0:01:45.1]} 18... Kh8 {[%clk 0:02:09.1]} 19. Qa1 {[%clk 0:01:41.6]}
19... Nxb2 {[%clk 0:02:06.6]} 20. Qxb2 {[%clk 0:01:41.1]} 20... Qf6 {[%clk
0:02:02.1]} 21. Rc1 {[%clk 0:01:29.9]} 21... Rae8 {[%clk 0:02:01.5]} 22. Qd2
{[%clk 0:01:27]} 22... Bh3 {[%clk 0:01:57.3]} 23. Bg2 {[%clk 0:01:20.3]} 23...
Bxg2+ {[%clk 0:01:41.1]} 24. Kxg2 {[%clk 0:01:21.2]} 24... Qf3+ {[%clk
0:01:41.7]} 25. Kg1 {[%clk 0:01:21]} 25... Re5 {[%clk 0:01:42.4]} 26. Nd5 {[%clk
0:00:57.1]} 26... Rh5 {[%clk 0:01:40.2]} 27. Qe3 {[%clk 0:00:53.8]} 27... Qg4
{[%clk 0:01:37.5]} 28. f4 {[%clk 0:00:52.5]} 28... c6 {[%clk 0:01:32]} 29. Nc3
{[%clk 0:00:40.3]} 29... c5 {[%clk 0:01:28.7]} 30. Qf3 {[%clk 0:00:38.8]} 30...
Bd4+ {[%clk 0:01:26.2]} 31. Kh1 {[%clk 0:00:38.8]} 31... Qh3 {[%clk 0:01:26.1]}
32. Qg2 {[%clk 0:00:38.9]} 32... Qd7 {[%clk 0:01:21.1]} 33. Ne2 {[%clk
0:00:37.8]} 33... Bg7 {[%clk 0:01:19.7]} 34. Rcd1 {[%clk 0:00:37.7]} 34... Re8
{[%clk 0:01:16]} 35. Ng1 {[%clk 0:00:33.5]} 35... Rf5 {[%clk 0:01:04.1]} 36.
Rfe1 {[%clk 0:00:32]} 36... Rxe1 {[%clk 0:01:00.8]} 37. Rxe1 {[%clk 0:00:32.9]}
37... d5 {[%clk 0:01:01.3]} 38. cxd5 {[%clk 0:00:32.9]} 38... Rxd5 {[%clk
0:01:00.8]} 39. Nf3 {[%clk 0:00:30.6]} 39... Rd1 {[%clk 0:00:58]} 40. Qf1 {[%clk
0:00:29]} 40... Rd3 {[%clk 0:00:46.4]} 41. Ng5 {[%clk 0:00:25.1]} 41... Qd5+
{[%clk 0:00:34.3]} 42. Qg2 {[%clk 0:00:23.9]} 42... Qxg2+ {[%clk 0:00:32.3]} 43.
Kxg2 {[%clk 0:00:24.8]} 43... Rd2+ {[%clk 0:00:32.5]} 44. Kf3 {[%clk 0:00:24.8]}
44... h6 {[%clk 0:00:31.4]} 45. Re8+ {[%clk 0:00:24.4]} 45... Bf8 {[%clk
0:00:27.6]} 46. Ne6 {[%clk 0:00:24.6]} 1-0

[Event "Early-Titled-Tuesday-Blitz-September-05-2023"]
[Site "Chess.com"]
[Date "2023.09.05"]
[Round "4"]
[White "GMG"]
[Black "sergiochess83"]
[Result "1-0"]
[WhiteElo "2799"]
[BlackElo "2931"]
[TimeControl "180+1"]
[EndTime "8:37:58 PDT"]
[Termination "GMG won on time"]

1. d4 {[%clk 0:02:57.8]} 1... Nf6 {[%clk 0:02:51.5]} 2. c4 {[%clk 0:02:57.7]}
2... e6 {[%clk 0:02:50.8]} 3. Nf3 {[%clk 0:02:57.8]} 3... d5 {[%clk 0:02:49.4]}
4. g3 {[%clk 0:02:58.1]} 4... dxc4 {[%clk 0:02:44.1]} 5. Bg2 {[%clk 0:02:53.6]}
5... Bb4+ {[%clk 0:02:43.6]} 6. Bd2 {[%clk 0:02:50.9]} 6... a5 {[%clk
0:02:43.1]} 7. Qc2 {[%clk 0:02:50]} 7... Bxd2+ {[%clk 0:02:32.8]} 8. Nbxd2
{[%clk 0:02:48.4]} 8... b5 {[%clk 0:02:32]} 9. a4 {[%clk 0:02:48]} 9... c6
{[%clk 0:02:32]} 10. b3 {[%clk 0:02:48.2]} 10... cxb3 {[%clk 0:02:28.9]} 11.
Nxb3 {[%clk 0:02:49.1]} 11... b4 {[%clk 0:02:29.4]} 12. Ne5 {[%clk 0:02:45.6]}
12... O-O {[%clk 0:02:27.1]} 13. O-O {[%clk 0:02:43.1]} 13... Nd5 {[%clk
0:02:26.8]} 14. Nc5 {[%clk 0:02:37.3]} 14... Nc3 {[%clk 0:02:19.7]} 15. e3
{[%clk 0:02:34.6]} 15... f6 {[%clk 0:02:08.5]} 16. Ned3 {[%clk 0:02:24.3]} 16...
Qe7 {[%clk 0:01:50]} 17. Qb3 {[%clk 0:02:18.4]} 17... Kh8 {[%clk 0:01:46]} 18.
f4 {[%clk 0:02:18.7]} 18... Na6 {[%clk 0:01:36.5]} 19. Rf2 {[%clk 0:02:14.6]}
19... Nxc5 {[%clk 0:01:35]} 20. Nxc5 {[%clk 0:02:15.5]} 20... Bd7 {[%clk
0:01:20.1]} 21. Raf1 {[%clk 0:02:11.1]} 21... Qd6 {[%clk 0:01:16.8]} 22. Qc4
{[%clk 0:02:00.8]} 22... Nd5 {[%clk 0:01:06.9]} 23. Qd3 {[%clk 0:01:53.4]} 23...
Rae8 {[%clk 0:01:04.5]} 24. e4 {[%clk 0:01:51.8]} 24... Nc3 {[%clk 0:01:01.8]}
25. e5 {[%clk 0:01:49.1]} 25... Qc7 {[%clk 0:00:56.2]} 26. Qa6 {[%clk
0:01:38.3]} 26... Bc8 {[%clk 0:00:52.6]} 27. Qc4 {[%clk 0:01:31.2]} 27... Nd5
{[%clk 0:00:45.4]} 28. Re1 {[%clk 0:01:28.7]} 28... fxe5 {[%clk 0:00:41.4]} 29.
Rxe5 {[%clk 0:01:26.1]} 29... Qd6 {[%clk 0:00:36.2]} 30. Rfe2 {[%clk 0:01:19]}
30... Nc3 {[%clk 0:00:33.8]} 31. Rd2 {[%clk 0:01:13]} 31... Rd8 {[%clk
0:00:34.1]} 32. Bh3 {[%clk 0:01:10.8]} 32... Nd5 {[%clk 0:00:25.4]} 33. Bxe6
{[%clk 0:00:58.6]} 33... Rfe8 {[%clk 0:00:16.3]} 34. Bxd5 {[%clk 0:00:55.7]}
34... cxd5 {[%clk 0:00:15.5]} 35. Qb5 {[%clk 0:00:54]} 35... Rxe5 {[%clk
0:00:10.7]} 36. dxe5 {[%clk 0:00:49.2]} 36... Qc7 {[%clk 0:00:10.8]} 37. Rd4
{[%clk 0:00:35.7]} 37... g5 {[%clk 0:00:10.1]} 38. e6 {[%clk 0:00:31]} 38...
gxf4 {[%clk 0:00:09.1]} 39. Rxf4 {[%clk 0:00:23.5]} 39... Qe5 {[%clk 0:00:09.3]}
40. Qf1 {[%clk 0:00:17.9]} 40... Rg8 {[%clk 0:00:08.3]} 41. Qf2 {[%clk
0:00:14.6]} 41... Bxe6 {[%clk 0:00:07.9]} 42. Nxe6 {[%clk 0:00:14.5]} 1-0

[Event "Early-Titled-Tuesday-Blitz-September-05-2023"]
[Site "Chess.com"]
[Date "2023.09.05"]
[Round "4"]
[White "Der_Balak_3Halak"]
[Black "Bilan_Danila"]
[Result "0-1"]
[WhiteElo "2399"]
[BlackElo "2547"]
[TimeControl "180+1"]
[EndTime "8:37:59 PDT"]
[Termination "Bilan_Danila won by resignation"]

1. e4 {[%clk 0:03:00.9]} 1... c6 {[%clk 0:02:57.5]} 2. d4 {[%clk 0:02:57]} 2...
d5 {[%clk 0:02:58.4]} 3. exd5 {[%clk 0:02:57.9]} 3... cxd5 {[%clk 0:02:58.5]} 4.
Nf3 {[%clk 0:02:58.8]} 4... Nc6 {[%clk 0:02:57.8]} 5. Bb5 {[%clk 0:02:57]} 5...
Nf6 {[%clk 0:02:57.5]} 6. O-O {[%clk 0:02:53.4]} 6... Bg4 {[%clk 0:02:56.3]} 7.
h3 {[%clk 0:02:52.5]} 7... Bh5 {[%clk 0:02:42.9]} 8. g4 {[%clk 0:02:50.3]} 8...
Bg6 {[%clk 0:02:42.7]} 9. Ne5 {[%clk 0:02:50.9]} 9... Rc8 {[%clk 0:02:32]} 10.
f4 {[%clk 0:02:34.8]} 10... Be4 {[%clk 0:02:27.4]} 11. Nc3 {[%clk 0:02:26.6]}
11... e6 {[%clk 0:02:17.3]} 12. Be3 {[%clk 0:02:07.4]} 12... Bb4 {[%clk
0:01:56.8]} 13. g5 {[%clk 0:01:59.5]} 13... Bxc3 {[%clk 0:01:45.8]} 14. bxc3
{[%clk 0:01:36.9]} 14... Nd7 {[%clk 0:01:43.9]} 15. Bxc6 {[%clk 0:01:10.9]}
15... bxc6 {[%clk 0:01:40.7]} 16. Rb1 {[%clk 0:01:07.2]} 16... Nb6 {[%clk
0:01:29.7]} 17. Qh5 {[%clk 0:00:59.3]} 17... O-O {[%clk 0:01:19.8]} 18. Kh2
{[%clk 0:00:56.3]} 18... Bxc2 {[%clk 0:01:07.2]} 19. Rb2 {[%clk 0:00:55.2]}
19... Bg6 {[%clk 0:01:04.4]} 20. Qe2 {[%clk 0:00:53.1]} 20... Bf5 {[%clk
0:00:38]} 21. Rg1 {[%clk 0:00:43.8]} 21... Kh8 {[%clk 0:00:33]} 22. Qh5 {[%clk
0:00:37.8]} 22... Qe7 {[%clk 0:00:27.1]} 23. Rbg2 {[%clk 0:00:33.3]} 23... Be4
{[%clk 0:00:22.5]} 24. g6 {[%clk 0:00:31.4]} 24... fxg6 {[%clk 0:00:13.6]} 25.
Rxg6 {[%clk 0:00:31.6]} 25... Nc4 {[%clk 0:00:07.6]} 26. Rxg7 {[%clk 0:00:13.7]}
26... Qxg7 {[%clk 0:00:08]} 27. Ng6+ {[%clk 0:00:11.2]} 27... Bxg6 {[%clk
0:00:05.4]} 28. Qe2 {[%clk 0:00:08.9]} 28... Qf6 {[%clk 0:00:04.1]} 29. Bc1
{[%clk 0:00:08.4]} 29... Rb8 {[%clk 0:00:04]} 30. f5 {[%clk 0:00:08.4]} 30...
Qxf5 {[%clk 0:00:03.8]} 31. Rg3 {[%clk 0:00:08]} 31... Kg8 {[%clk 0:00:04.4]}
32. Rg2 {[%clk 0:00:07.6]} 32... Rb1 {[%clk 0:00:04.3]} 33. Bh6 {[%clk
0:00:05.8]} 33... Rfb8 {[%clk 0:00:03.6]} 34. Rf2 {[%clk 0:00:04.6]} 34... Qe4
{[%clk 0:00:04.1]} 35. Qf3 {[%clk 0:00:03.5]} 35... Qxf3 {[%clk 0:00:04.3]} 36.
Rxf3 {[%clk 0:00:04.4]} 36... Nd2 {[%clk 0:00:03.8]} 37. Rf2 {[%clk 0:00:04.3]}
37... Ne4 {[%clk 0:00:04]} 38. Rf3 {[%clk 0:00:04]} 38... R8b2+ {[%clk
0:00:04.1]} 0-1

[Event "Early-Titled-Tuesday-Blitz-September-05-2023"]
[Site "Chess.com"]
[Date "2023.09.05"]
[Round "4"]
[White "Sulthankan"]
[Black "bazar-wokzal"]
[Result "1-0"]
[WhiteElo "2413"]
[BlackElo "2526"]
[TimeControl "180+1"]
[EndTime "8:38:00 PDT"]
[Termination "Sulthankan won on time"]

1. d4 {[%clk 0:03:00.9]} 1... Nf6 {[%clk 0:02:59.5]} 2. c4 {[%clk 0:03:00.7]}
2... Nc6 {[%clk 0:02:59.5]} 3. Nc3 {[%clk 0:02:59.1]} 3... e5 {[%clk 0:02:59.2]}
4. d5 {[%clk 0:02:58.1]} 4... Ne7 {[%clk 0:02:58.9]} 5. Nf3 {[%clk 0:02:55.7]}
5... Ng6 {[%clk 0:02:58.5]} 6. h4 {[%clk 0:02:53.2]} 6... h5 {[%clk 0:02:57.9]}
7. Bg5 {[%clk 0:02:50.9]} 7... Be7 {[%clk 0:02:56.3]} 8. e3 {[%clk 0:02:50.4]}
8... Ng4 {[%clk 0:02:55.9]} 9. Bxe7 {[%clk 0:02:49.9]} 9... Qxe7 {[%clk
0:02:55.6]} 10. Bd3 {[%clk 0:02:50.4]} 10... Nf8 {[%clk 0:02:53.6]} 11. Rc1
{[%clk 0:02:35.8]} 11... d6 {[%clk 0:02:53.4]} 12. a3 {[%clk 0:02:32.7]} 12...
f5 {[%clk 0:02:33.5]} 13. e4 {[%clk 0:02:17.8]} 13... f4 {[%clk 0:02:31]} 14. b4
{[%clk 0:02:17.5]} 14... Bd7 {[%clk 0:02:20.5]} 15. Kf1 {[%clk 0:02:09.7]} 15...
Nh7 {[%clk 0:02:15.4]} 16. c5 {[%clk 0:02:10.1]} 16... g5 {[%clk 0:02:06.3]} 17.
Bb5 {[%clk 0:01:57.5]} 17... dxc5 {[%clk 0:01:33.7]} 18. Bxd7+ {[%clk
0:01:48.7]} 18... Kxd7 {[%clk 0:01:33.6]} 19. Qa4+ {[%clk 0:01:37.6]} 19... Kc8
{[%clk 0:01:24.8]} 20. Nb5 {[%clk 0:01:24.9]} 20... Kb8 {[%clk 0:01:11.9]} 21.
Rxc5 {[%clk 0:00:28.9]} 21... Rc8 {[%clk 0:01:09.4]} 22. hxg5 {[%clk 0:00:27.6]}
22... Nxg5 {[%clk 0:01:08.9]} 23. Rxh5 {[%clk 0:00:27.4]} 23... Nxf3 {[%clk
0:01:04.1]} 24. gxf3 {[%clk 0:00:27.6]} 24... Nf6 {[%clk 0:01:02.3]} 25. Rh6
{[%clk 0:00:24.2]} 25... a6 {[%clk 0:00:22.3]} 26. d6 {[%clk 0:00:13.1]} 26...
cxd6 {[%clk 0:00:14.9]} 27. Rxc8+ {[%clk 0:00:13.5]} 27... Kxc8 {[%clk
0:00:15.4]} 28. Rh8+ {[%clk 0:00:12.6]} 28... Ne8 {[%clk 0:00:12.4]} 29. Nxd6+
{[%clk 0:00:12.4]} 29... Qxd6 {[%clk 0:00:12]} 30. Qxe8+ {[%clk 0:00:07.4]}
30... Kc7 {[%clk 0:00:12]} 31. Rh7+ {[%clk 0:00:07.3]} 31... Kb6 {[%clk
0:00:11.4]} 32. Qxa8 {[%clk 0:00:07.3]} 32... Kb5 {[%clk 0:00:07.1]} 33. Qxb7+
{[%clk 0:00:07.3]} 33... Ka4 {[%clk 0:00:07.4]} 34. Qd5 {[%clk 0:00:05.9]} 34...
Qg6 {[%clk 0:00:04.1]} 35. Ra7 {[%clk 0:00:05.3]} 35... Kxa3 {[%clk 0:00:03.6]}
36. Qc4 {[%clk 0:00:04.3]} 36... Qg8 {[%clk 0:00:01.5]} 37. Rxa6+ {[%clk
0:00:04.7]} 37... Kb2 {[%clk 0:00:01.9]} 38. Qxg8 {[%clk 0:00:05.6]} 1-0

[Event "Early-Titled-Tuesday-Blitz-September-05-2023"]
[Site "Chess.com"]
[Date "2023.09.05"]
[Round "4"]
[White "Msb2"]
[Black "TigrVShlyape"]
[Result "1-0"]
[WhiteElo "3109"]
[BlackElo "2871"]
[TimeControl "180+1"]
[EndTime "8:38:04 PDT"]
[Termination "Msb2 won on time"]

1. d4 {[%clk 0:03:00.9]} 1... d5 {[%clk 0:02:57.5]} 2. c4 {[%clk 0:03:01.3]}
2... c6 {[%clk 0:02:57.3]} 3. Nf3 {[%clk 0:03:01.8]} 3... Nf6 {[%clk 0:02:57.2]}
4. Nc3 {[%clk 0:03:01.9]} 4... a6 {[%clk 0:02:56.4]} 5. Qc2 {[%clk 0:03:01.6]}
5... Bg4 {[%clk 0:02:54]} 6. Ne5 {[%clk 0:02:51.7]} 6... Be6 {[%clk 0:02:54.1]}
7. Bg5 {[%clk 0:02:41.1]} 7... dxc4 {[%clk 0:02:48.7]} 8. e3 {[%clk 0:02:39.7]}
8... b5 {[%clk 0:02:43]} 9. Be2 {[%clk 0:02:38.2]} 9... Nd5 {[%clk 0:02:40.2]}
10. O-O {[%clk 0:02:25]} 10... g6 {[%clk 0:02:36.9]} 11. Bh4 {[%clk 0:02:14.2]}
11... Bg7 {[%clk 0:02:34.4]} 12. b3 {[%clk 0:02:14.7]} 12... cxb3 {[%clk
0:02:31.7]} 13. axb3 {[%clk 0:02:15.6]} 13... O-O {[%clk 0:02:30.6]} 14. Ne4
{[%clk 0:02:08.7]} 14... Bf5 {[%clk 0:02:18.4]} 15. Bf3 {[%clk 0:02:04.5]} 15...
Bxe5 {[%clk 0:01:57.9]} 16. dxe5 {[%clk 0:02:05.4]} 16... Nd7 {[%clk 0:01:56.7]}
17. Qb2 {[%clk 0:01:47.3]} 17... Qc7 {[%clk 0:01:38.5]} 18. Bg3 {[%clk
0:01:40.3]} 18... Qb6 {[%clk 0:01:35.2]} 19. Rfd1 {[%clk 0:01:37]} 19... h6
{[%clk 0:01:28.8]} 20. h4 {[%clk 0:01:34.9]} 20... a5 {[%clk 0:01:27.3]} 21. Nc3
{[%clk 0:01:26.6]} 21... Nxc3 {[%clk 0:01:22.3]} 22. Qxc3 {[%clk 0:01:27.5]}
22... Nc5 {[%clk 0:01:22]} 23. Bf4 {[%clk 0:01:18.4]} 23... b4 {[%clk 0:01:16]}
24. Qb2 {[%clk 0:01:09.6]} 24... Nd3 {[%clk 0:01:14.5]} 25. Rxd3 {[%clk
0:01:09.7]} 25... Bxd3 {[%clk 0:01:14.2]} 26. Bxh6 {[%clk 0:01:10.6]} 26... Rfd8
{[%clk 0:01:11.8]} 27. h5 {[%clk 0:01:05.5]} 27... a4 {[%clk 0:00:53.7]} 28.
bxa4 {[%clk 0:01:04.8]} 28... Ra5 {[%clk 0:00:50.8]} 29. e4 {[%clk 0:01:04.6]}
29... Qd4 {[%clk 0:00:48.7]} 30. Qc1 {[%clk 0:00:58.6]} 30... Qxe5 {[%clk
0:00:46.7]} 31. Bf4 {[%clk 0:00:57.3]} 31... Qc3 {[%clk 0:00:46.1]} 32. Qd1
{[%clk 0:00:53.7]} 32... Raa8 {[%clk 0:00:37.7]} 33. Rc1 {[%clk 0:00:53.3]}
33... Qf6 {[%clk 0:00:37.5]} 34. Bc7 {[%clk 0:00:47.3]} 34... e5 {[%clk
0:00:16.4]} 35. Bxd8 {[%clk 0:00:45]} 35... Rxd8 {[%clk 0:00:16.5]} 36. hxg6
{[%clk 0:00:45.7]} 36... Qxg6 {[%clk 0:00:14.7]} 37. a5 {[%clk 0:00:44.9]} 37...
Qg5 {[%clk 0:00:11.9]} 38. a6 {[%clk 0:00:19.4]} 38... Bxa6 {[%clk 0:00:10.4]}
39. Qe1 {[%clk 0:00:19.4]} 39... Bb5 {[%clk 0:00:09.9]} 40. Rb1 {[%clk
0:00:18.4]} 40... c5 {[%clk 0:00:10.1]} 41. Rc1 {[%clk 0:00:17.5]} 41... c4
{[%clk 0:00:09.5]} 42. Ra1 {[%clk 0:00:17]} 42... c3 {[%clk 0:00:09.2]} 43. Qb1
{[%clk 0:00:17.2]} 43... Bd3 {[%clk 0:00:07.5]} 44. Qxb4 {[%clk 0:00:17.2]}
44... c2 {[%clk 0:00:07.9]} 45. Qc5 {[%clk 0:00:16.6]} 45... Qf6 {[%clk
0:00:04.1]} 46. Rc1 {[%clk 0:00:16.1]} 46... Qh6 {[%clk 0:00:01.4]} 47. Rxc2
{[%clk 0:00:15.6]} 47... Bxc2 {[%clk 0:00:01]} 48. Qxc2 {[%clk 0:00:16.5]} 1-0

[Event "Early-Titled-Tuesday-Blitz-September-05-2023"]
[Site "Chess.com"]
[Date "2023.09.05"]
[Round "4"]
[White "biostatistician"]
[Black "McCarthyStone"]
[Result "1-0"]
[WhiteElo "2598"]
[BlackElo "2428"]
[TimeControl "180+1"]
[EndTime "8:38:06 PDT"]
[Termination "biostatistician won by resignation"]

1. d4 {[%clk 0:02:59.4]} 1... Nf6 {[%clk 0:02:57.9]} 2. Nf3 {[%clk 0:03:00.3]}
2... g6 {[%clk 0:02:57.5]} 3. c4 {[%clk 0:03:00.7]} 3... Bg7 {[%clk 0:02:58]} 4.
Nc3 {[%clk 0:03:01.2]} 4... O-O {[%clk 0:02:58.6]} 5. e4 {[%clk 0:03:01.4]} 5...
d6 {[%clk 0:02:58.7]} 6. Be2 {[%clk 0:03:02.3]} 6... e5 {[%clk 0:02:59]} 7. dxe5
{[%clk 0:03:03.2]} 7... dxe5 {[%clk 0:02:59.2]} 8. Qxd8 {[%clk 0:03:03.2]} 8...
Rxd8 {[%clk 0:03:00.1]} 9. Bg5 {[%clk 0:03:03.6]} 9... Na6 {[%clk 0:02:57.9]}
10. Nd5 {[%clk 0:03:03.3]} 10... Rd6 {[%clk 0:02:51.7]} 11. Nxf6+ {[%clk
0:03:03.2]} 11... Bxf6 {[%clk 0:02:51.7]} 12. Bxf6 {[%clk 0:03:04.1]} 12... Rxf6
{[%clk 0:02:52.2]} 13. Nxe5 {[%clk 0:03:05]} 13... Re6 {[%clk 0:02:52.2]} 14. f4
{[%clk 0:03:05.4]} 14... Nc5 {[%clk 0:02:44]} 15. O-O-O {[%clk 0:02:56.3]} 15...
Re8 {[%clk 0:02:15.2]} 16. Bf3 {[%clk 0:02:52.9]} 16... f6 {[%clk 0:02:01.6]}
17. Rd5 {[%clk 0:02:21.9]} 17... b6 {[%clk 0:01:41.9]} 18. Nd3 {[%clk
0:01:51.1]} 18... Bb7 {[%clk 0:01:29.1]} 19. Nxc5 {[%clk 0:00:39.1]} 19... Bxd5
{[%clk 0:01:28.3]} 20. Na6 {[%clk 0:00:39.3]} 20... Bxe4 {[%clk 0:01:16.1]} 21.
Nxc7 {[%clk 0:00:39.5]} 21... Bxf3 {[%clk 0:01:06.1]} 22. gxf3 {[%clk
0:00:40.4]} 22... Kf7 {[%clk 0:00:48.1]} 23. Rd1 {[%clk 0:00:39.5]} 23... Rad8
{[%clk 0:00:45]} 24. Nxe8 {[%clk 0:00:38.4]} 24... Rxd1+ {[%clk 0:00:43.6]} 25.
Kxd1 {[%clk 0:00:38.3]} 25... Kxe8 {[%clk 0:00:39.8]} 26. Ke2 {[%clk 0:00:38.5]}
26... Ke7 {[%clk 0:00:40.3]} 27. Ke3 {[%clk 0:00:39]} 27... Kd6 {[%clk
0:00:39.5]} 28. Kd4 {[%clk 0:00:37.4]} 28... Ke6 {[%clk 0:00:39.5]} 29. Ke4
{[%clk 0:00:37.5]} 29... a5 {[%clk 0:00:34.6]} 30. b3 {[%clk 0:00:36.7]} 30...
Kd6 {[%clk 0:00:34.1]} 31. a3 {[%clk 0:00:31]} 31... Kc5 {[%clk 0:00:29.9]} 32.
Kd3 {[%clk 0:00:31.2]} 32... h5 {[%clk 0:00:10.3]} 33. Kc3 {[%clk 0:00:26.9]}
33... h4 {[%clk 0:00:07.1]} 34. b4+ {[%clk 0:00:26.6]} 34... axb4+ {[%clk
0:00:07]} 35. axb4+ {[%clk 0:00:27.5]} 35... Kd6 {[%clk 0:00:05.8]} 36. Kd4
{[%clk 0:00:28.4]} 36... h3 {[%clk 0:00:02.9]} 37. c5+ {[%clk 0:00:27.9]} 37...
bxc5+ {[%clk 0:00:03.8]} 38. bxc5+ {[%clk 0:00:28.7]} 38... Kc6 {[%clk
0:00:02.1]} 39. Kc4 {[%clk 0:00:29.1]} 39... Kc7 {[%clk 0:00:02.2]} 40. Kd5
{[%clk 0:00:29.1]} 40... Kd7 {[%clk 0:00:02.5]} 41. c6+ {[%clk 0:00:28.7]} 41...
Ke7 {[%clk 0:00:03.1]} 42. Kc5 {[%clk 0:00:24.5]} 42... g5 {[%clk 0:00:02.4]}
43. fxg5 {[%clk 0:00:24.4]} 43... fxg5 {[%clk 0:00:03.3]} 44. Kb6 {[%clk
0:00:24.5]} 44... Kf6 {[%clk 0:00:03.6]} 45. c7 {[%clk 0:00:24.3]} 45... g4
{[%clk 0:00:04.5]} 46. fxg4 {[%clk 0:00:24.2]} 46... Kg5 {[%clk 0:00:03.5]} 47.
c8=Q {[%clk 0:00:23.9]} 47... Kh4 {[%clk 0:00:04.4]} 48. g5 {[%clk 0:00:22.4]}
48... Kxg5 {[%clk 0:00:02.9]} 49. Qxh3 {[%clk 0:00:22.7]} 1-0